fUSD/lending_fUSD_20240919
["ID","MTS","AMOUNT","RATE_DAILY","PERIOD"]
[338552144,1726731046284,-528.99,0.00013163,2]
[338552145,1726731046293,-500.0,0.00013163,2]
[338552146,1726731046303,-332.83179084,0.00013163,2]
[338552147,1726731046312,-500.0,0.00013163,2]
[338552148,1726731046322,-500.0,0.00013163,2]
[338552149,1726731046331,-500.0,0.00013163,2]
[338552150,1726731046341,-861.37,0.00013163,2]
[338552151,1726731046350,-614.08,0.00013163,2]
[338552152,1726731046361,-879.79,0.00013163,2]
[338552153,1726731046371,-521.65,0.00013163,2]
[338552154,1726731046380,-980.6,0.00013163,2]
[338552155,1726731046389,-500.0,0.00013163,2]
[338552156,1726731046398,-500.0,0.00013163,2]
[338552157,1726731046408,-1024.88,0.00013163,2]
[338552158,1726731046417,-500.0,0.00013163,2]
[338552159,1726731046426,-500.0,0.00013163,2]
[338552160,1726731046435,-500.0,0.00013163,2]
[338552161,1726731046445,-500.0,0.00013163,2]
[338552162,1726731046455,-698.65,0.00013163,2]
[338552163,1726731046464,-500.0,0.00013163,2]
[338552164,1726731046473,-500.0,0.00013163,2]
[338552165,1726731046483,-764.87,0.00013163,2]
[338552166,1726731046493,-500.0,0.00013163,2]
[338552167,1726731046503,-500.0,0.00013163,2]
[338552168,1726731046512,-1007.12,0.00013163,2]
[338552169,1726731046526,-500.0,0.00013163,2]
[338552170,1726731046535,-679.13,0.00013163,2]
[338552171,1726731046545,-500.0,0.00013163,2]
[338552172,1726731046554,-569.83,0.00013163,2]
[338552173,1726731046564,-500.0,0.00013163,2]
[338552174,1726731046573,-765.52,0.00013163,2]
[338552175,1726731046582,-500.0,0.00013163,2]
[338552176,1726731046591,-500.0,0.00013163,2]
[338552177,1726731046600,-500.0,0.00013163,2]
[338552178,1726731046610,-500.0,0.00013163,2]
[338552179,1726731046620,-870.34,0.00013163,2]
[338552180,1726731046629,-500.0,0.00013163,2]
[338552181,1726731046639,-516.01,0.00013163,2]
[338552182,1726731046648,-500.0,0.00013163,2]
[338552183,1726731046658,-983.22,0.00013163,2]
[338552184,1726731046667,-920.87,0.00013163,2]
[338552185,1726731046677,-500.0,0.00013163,2]
[338552186,1726731046687,-500.0,0.00013163,2]
[338552187,1726731046697,-537.11,0.00013163,2]
[338552188,1726731046707,-582.85,0.00013163,2]
[338552189,1726731046716,-500.0,0.00013163,2]
[338552190,1726731046726,-1935.69,0.00013163,2]
[338552191,1726731046735,-599.23,0.00013163,2]
[338552192,1726731046745,-616.28,0.00013163,2]
[338552193,1726731046755,-500.0,0.00013163,2]
[338552194,1726731046764,-980.34,0.00013163,2]
[338552195,1726731046777,-579.61,0.00013163,2]
[338552196,1726731046786,-500.0,0.00013163,2]
[338552197,1726731046795,-500.0,0.00013163,2]
[338552198,1726731046805,-1026.04,0.00013163,2]
[338552199,1726731046814,-703.89,0.00013163,2]
[338552200,1726731046824,-500.0,0.00013163,2]
[338552201,1726731046834,-546.7,0.00013163,2]
[338552202,1726731046843,-500.0,0.00013163,2]
[338552203,1726731046853,-908.38,0.00013163,2]
[338552204,1726731046862,-1358.67,0.00013163,2]
[338552205,1726731046872,-500.0,0.00013163,2]
[338552206,1726731046881,-500.0,0.00013163,2]
[338552207,1726731046891,-647.82,0.00013163,2]
[338552208,1726731046900,-576.79,0.00013163,2]
[338552209,1726731046910,-500.0,0.00013163,2]
[338552210,1726731046919,-500.0,0.00013163,2]
[338552211,1726731046928,-500.0,0.00013163,2]
[338552212,1726731046937,-519.41,0.00013163,2]
[338552213,1726731046946,-500.0,0.00013163,2]
[338552214,1726731046955,-500.0,0.00013163,2]
[338552215,1726731046964,-527.37,0.00013163,2]
[338552216,1726731046974,-968.43,0.00013163,2]
[338552217,1726731046983,-500.0,0.00013163,2]
[338552218,1726731046993,-835.93,0.00013163,2]
[338552219,1726731047007,-500.0,0.00013163,2]
[338552220,1726731047018,-500.0,0.00013163,2]
[338552221,1726731047027,-568.58,0.00013163,2]
[338552222,1726731047038,-1087.63,0.00013163,2]
[338552223,1726731047047,-500.0,0.00013163,2]
[338552224,1726731047059,-500.0,0.00013163,2]
[338552225,1726731047068,-652.8,0.00013163,2]
[338552226,1726731047079,-654.68,0.00013163,2]
[338552227,1726731047089,-500.0,0.00013163,2]
[338552228,1726731047099,-738.42,0.00013163,2]
[338552229,1726731047109,-709.4,0.00013163,2]
[338552230,1726731047118,-510.34,0.00013163,2]
[338552231,1726731047128,-647.02,0.00013163,2]
[338552232,1726731047138,-807.28,0.00013163,2]
[338552233,1726731047148,-500.0,0.00013163,2]
[338552234,1726731047158,-1092.58,0.00013163,2]
[338552235,1726731047167,-500.0,0.00013163,2]
[338552236,1726731047177,-500.0,0.00013163,2]
[338552237,1726731047187,-940.38,0.00013163,2]
[338552238,1726731047196,-500.0,0.00013163,2]
[338552239,1726731047206,-500.0,0.00013163,2]
[338552240,1726731047216,-500.0,0.00013163,2]
[338552241,1726731047225,-1175.9,0.00013163,2]
[338552242,1726731047234,-1154.54,0.00013163,2]
[338552243,1726731047244,-500.0,0.00013163,2]
[338552244,1726731047254,-766.01,0.00013163,2]
[338552245,1726731047263,-841.49,0.00013163,2]
[338552246,1726731047274,-500.0,0.00013163,2]
[338552247,1726731047284,-500.0,0.00013163,2]
[338552248,1726731047294,-500.0,0.00013163,2]
[338552249,1726731047303,-500.0,0.00013163,2]
[338552250,1726731047313,-500.0,0.00013163,2]
[338552251,1726731047322,-500.0,0.00013163,2]
[338552252,1726731047331,-575.4,0.00013163,2]
[338552253,1726731047340,-500.0,0.00013163,2]
[338552254,1726731047349,-500.0,0.00013163,2]
[338552255,1726731047360,-500.0,0.00013163,2]
[338552256,1726731047369,-500.0,0.00013163,2]
[338552257,1726731047379,-500.0,0.00013163,2]
[338552258,1726731047389,-604.68,0.00013163,2]
[338552259,1726731047398,-1421.7,0.00013163,2]
[338552260,1726731047408,-2367.96,0.00013163,2]
[338552261,1726731047417,-500.0,0.00013163,2]
[338552262,1726731047427,-874.06,0.00013163,2]
[338552263,1726731047437,-500.0,0.00013163,2]
[338552264,1726731047446,-933.92,0.00013163,2]
[338552265,1726731047456,-1720.08,0.00013163,2]
[338552266,1726731047465,-500.0,0.00013163,2]
[338552267,1726731047474,-790.47,0.00013163,2]
[338552268,1726731047483,-500.0,0.00013163,2]
[338552269,1726731047493,-506.91,0.00013163,2]
[338552270,1726731047502,-500.0,0.00013163,2]
[338552271,1726731047512,-500.0,0.00013163,2]
[338552272,1726731047523,-500.0,0.00013163,2]
[338552273,1726731047532,-2914.01,0.00013163,2]
[338552274,1726731047542,-500.0,0.00013163,2]
[338552275,1726731047551,-500.0,0.00013163,2]
[338552276,1726731047561,-500.0,0.00013163,2]
[338552277,1726731047570,-500.0,0.00013163,2]
[338552278,1726731047579,-833.33,0.00013163,2]
[338552279,1726731047588,-500.0,0.00013163,2]
[338552280,1726731047598,-500.0,0.00013163,2]
[338552281,1726731047607,-2375.57,0.00013163,2]
[338552282,1726731047616,-500.0,0.00013163,2]
[338552283,1726731047625,-500.0,0.00013163,2]
[338552284,1726731047635,-1210.31,0.00013163,2]
[338552285,1726731047646,-1044.41,0.00013163,2]
[338552286,1726731047655,-500.0,0.00013163,2]
[338552287,1726731047665,-500.0,0.00013163,2]
[338552288,1726731047675,-799.9,0.00013163,2]
[338552289,1726731047684,-712.71,0.00013163,2]
[338552290,1726731047694,-500.0,0.00013163,2]
[338552291,1726731047703,-4902.36,0.00013163,2]
[338552292,1726731047713,-1250.75,0.00013163,2]
[338552293,1726731047722,-1536.15,0.00013163,2]
[338552294,1726731047731,-500.0,0.00013163,2]
[338552295,1726731047740,-500.0,0.00013163,2]
[338552296,1726731047749,-500.0,0.00013163,2]
[338552297,1726731047759,-500.0,0.00013163,2]
[338552298,1726731047768,-1089.06,0.00013163,2]
[338552299,1726731047777,-784.38,0.00013163,2]
[338552300,1726731047787,-603.28,0.00013163,2]
[338552301,1726731047796,-870.38,0.00013163,2]
[338552302,1726731047805,-500.0,0.00013163,2]
[338552303,1726731047815,-557.19,0.00013163,2]
[338552304,1726731047824,-500.0,0.00013163,2]
[338552305,1726731047834,-621.17,0.00013163,2]
[338552306,1726731047843,-500.0,0.00013163,2]
[338552307,1726731047852,-1018.9,0.00013163,2]
[338552308,1726731047861,-500.0,0.00013163,2]
[338552309,1726731047871,-500.0,0.00013163,2]
[338552310,1726731047880,-1011.15,0.00013163,2]
[338552311,1726731047891,-500.0,0.00013163,2]
[338552312,1726731047900,-500.0,0.00013163,2]
[338552313,1726731047909,-500.0,0.00013163,2]
[338552314,1726731047920,-522.62,0.00013163,2]
[338552315,1726731047929,-540.26,0.00013163,2]
[338552316,1726731047939,-1646.74,0.00013163,2]
[338552317,1726731047948,-7226.5,0.00013163,2]
[338552318,1726731047958,-500.0,0.00013163,2]
[338552319,1726731047967,-500.0,0.00013163,2]
[338552320,1726731047977,-812.58,0.00013163,2]
[338552321,1726731047986,-500.0,0.00013163,2]
[338552322,1726731047996,-653.04,0.00013163,2]
[338552323,1726731048009,-1680.11,0.00013163,2]
[338552324,1726731048019,-500.0,0.00013163,2]
[338552325,1726731048028,-500.0,0.00013163,2]
[338552326,1726731048037,-500.0,0.00013163,2]
[338552327,1726731048046,-1682.57,0.00013163,2]
[338552328,1726731048056,-16287.96,0.00013163,2]
[338552329,1726731048066,-928.2,0.00013163,2]
[338552330,1726731048076,-500.0,0.00013163,2]
[338552331,1726731048086,-500.0,0.00013163,2]
[338552332,1726731048095,-1480.1,0.00013163,2]
[338552333,1726731048105,-2106.39,0.00013163,2]
[338552334,1726731048114,-500.0,0.00013163,2]
[338552335,1726731048124,-500.0,0.00013163,2]
[338552336,1726731048133,-500.0,0.00013163,2]
[338552337,1726731048143,-500.0,0.00013163,2]
[338552338,1726731048151,-500.0,0.00013163,2]
[338552339,1726731048160,-1520.26,0.00013163,2]
[338552340,1726731048168,-548.59,0.00013163,2]
[338552341,1726731048178,-521.92,0.00013163,2]
[338552342,1726731048187,-428.84,0.00013163,2]
[338552343,1726731048196,-494.62596743,0.00013163,2]
[338552344,1726731048206,-732.88,0.00013163,2]
[338552345,1726731048215,-500.0,0.00013163,2]
[338552346,1726731048224,-500.0,0.00013163,2]
[338552347,1726731048234,-500.0,0.00013163,2]
[338552348,1726731048243,-500.0,0.00013163,2]
[338552349,1726731048253,-1805.01,0.00013163,2]
[338552350,1726731048263,-500.0,0.00013163,2]
[338552351,1726731048273,-1092.64,0.00013163,2]
[338552352,1726731048283,-585.44,0.00013163,2]
[338552353,1726731048292,-500.0,0.00013163,2]
[338552354,1726731048302,-291.65580395,0.00013163,2]
[338552355,1726731048311,-681.74,0.00013163,2]
[338552356,1726731048320,-500.0,0.00013163,2]
[338552357,1726731048330,-500.0,0.00013163,2]
[338552358,1726731048339,-1177.76,0.00013163,2]
[338552359,1726731048349,-500.0,0.00013163,2]
[338552360,1726731048358,-3999.11,0.00013163,2]
[338552361,1726731048368,-2150.1,0.00013163,2]
[338552362,1726731048378,-500.0,0.00013163,2]
[338552363,1726731048388,-1751.13,0.00013163,2]
[338552364,1726731048397,-500.0,0.00013163,2]
[338552365,1726731048407,-535.87,0.00013163,2]
[338552366,1726731048417,-537.82,0.00013163,2]
[338552367,1726731048426,-2685.03,0.00013163,2]
[338552368,1726731048435,-500.0,0.00013163,2]
[338552369,1726731048444,-1799.12,0.00013163,2]
[338552370,1726731048454,-500.0,0.00013163,2]
[338552371,1726731048463,-500.0,0.00013163,2]
[338552372,1726731048473,-643.5,0.00013163,2]
[338552373,1726731048482,-500.0,0.00013163,2]
[338552374,1726731048491,-500.0,0.00013163,2]
[338552375,1726731048501,-500.0,0.00013163,2]
[338552376,1726731048510,-1471.91,0.00013163,2]
[338552377,1726731048520,-2469.71,0.00013163,2]
[338552378,1726731048530,-848.52,0.00013163,2]
[338552379,1726731048539,-4819.17,0.00013163,2]
[338552380,1726731048549,-500.0,0.00013163,2]
[338552381,1726731048559,-500.0,0.00013163,2]
[338552382,1726731048568,-500.0,0.00013163,2]
[338552383,1726731048577,-1612.89,0.00013163,2]
[338552384,1726731048587,-827.0,0.00013163,2]
[338552385,1726731048596,-500.0,0.00013163,2]
[338552386,1726731048605,-2573.95,0.00013163,2]
[338552387,1726731048614,-1192.08,0.00013163,2]
[338552388,1726731048624,-1141.86,0.00013163,2]
[338552389,1726731048633,-500.0,0.00013163,2]
[338552390,1726731048642,-1462.38,0.00013163,2]
[338552391,1726731048652,-500.0,0.00013163,2]
[338552392,1726731048661,-533.1,0.00013163,2]
[338552393,1726731048671,-188.01084268,0.00013163,2]
[338552394,1726731048680,-500.0,0.00013163,2]
[338552395,1726731048689,-1000.0,0.00013163,2]
[338552396,1726731048698,-1509.94,0.00013163,2]
[338552397,1726731048708,-3021.86,0.00013163,2]
[338552398,1726731048717,-737.32,0.00013163,2]
[338552399,1726731048726,-882.28,0.00013163,2]
[338552400,1726731048735,-541.11,0.00013163,2]
[338552401,1726731048745,-500.0,0.00013163,2]
[338552402,1726731048754,-500.0,0.00013163,2]
[338552403,1726731048763,-738.3,0.00013163,2]
[338552404,1726731048774,-2247.98,0.00013163,2]
[338552405,1726731048784,-500.0,0.00013163,2]
[338552406,1726731048794,-846.22,0.00013163,2]
[338552407,1726731048803,-645.71,0.00013163,2]
[338552408,1726731048812,-1788.07,0.00013163,2]
[338552409,1726731048821,-500.0,0.00013163,2]
[338552410,1726731048831,-556.26,0.00013163,2]
[338552411,1726731048841,-544.05,0.00013163,2]
[338552412,1726731048850,-514.93,0.00013163,2]
[338552413,1726731048859,-793.5,0.00013163,2]
[338552414,1726731048868,-641.67,0.00013163,2]
[338552415,1726731048878,-3187.25,0.00013163,2]
[338552416,1726731048887,-500.0,0.00013163,2]
[338552417,1726731048896,-500.0,0.00013163,2]
[338552418,1726731048905,-500.0,0.00013163,2]
[338552419,1726731048916,-1153.66,0.00013163,2]
[338552420,1726731048925,-500.0,0.00013163,2]
[338552421,1726731048935,-500.0,0.00013163,2]
[338552422,1726731048944,-500.0,0.00013163,2]
[338552423,1726731048954,-500.0,0.00013163,2]
[338552424,1726731048963,-1979.22,0.00013163,2]
[338552425,1726731048972,-686.72,0.00013163,2]
[338552426,1726731048981,-1063.62,0.00013163,2]
[338552427,1726731048991,-500.0,0.00013163,2]
[338552428,1726731049001,-1006.01,0.00013163,2]
[338552429,1726731049014,-500.0,0.00013163,2]
[338552430,1726731049025,-500.0,0.00013163,2]
[338552431,1726731049034,-500.0,0.00013163,2]
[338552432,1726731049044,-859.55,0.00013163,2]
[338552433,1726731049054,-500.68,0.00013163,2]
[338552434,1726731049063,-500.0,0.00013163,2]
[338552435,1726731049073,-500.0,0.00013163,2]
[338552436,1726731049083,-1336.68,0.00013163,2]
[338552437,1726731049092,-511.78,0.00013163,2]
[338552438,1726731049102,-1805.56,0.00013163,2]
[338552439,1726731049111,-1323.47,0.00013163,2]
[338552440,1726731049121,-1488.93,0.00013163,2]
[338552441,1726731049130,-1144.3,0.00013163,2]
[338552442,1726731049139,-500.0,0.00013163,2]
[338552443,1726731049149,-500.0,0.00013163,2]
[338552444,1726731049158,-823.59,0.00013163,2]
[338552445,1726731049167,-529.44,0.00013163,2]
[338552446,1726731049176,-860.55,0.00013163,2]
[338552447,1726731049186,-1250.67,0.00013163,2]
[338552448,1726731049195,-394.3025139,0.00013163,2]
[338552449,1726731049205,-954.31,0.00013163,2]
[338552450,1726731049214,-757.29,0.00013163,2]
[338552451,1726731049223,-500.0,0.00013163,2]
[338552452,1726731049232,-500.0,0.00013163,2]
[338552453,1726731049242,-1130.22,0.00013163,2]
[338552454,1726731049251,-500.0,0.00013163,2]
[338552455,1726731049260,-500.0,0.00013163,2]
[338552456,1726731049271,-596.43,0.00013163,2]
[338552457,1726731049280,-500.0,0.00013163,2]
[338552458,1726731049290,-500.0,0.00013163,2]
[338552459,1726731049299,-798.93,0.00013163,2]
[338552460,1726731049309,-701.25,0.00013163,2]
[338552461,1726731049318,-1340.61,0.00013163,2]
[338552462,1726731049328,-808.12,0.00013163,2]
[338552463,1726731049337,-500.0,0.00013164,2]
[338552464,1726731049347,-376.35770505,0.00013164,2]
[338552465,1726731049357,-500.0,0.00013164,2]
[338552466,1726731049367,-500.0,0.00013164,2]
[338552467,1726731049377,-500.0,0.00013164,2]
[338552468,1726731049386,-500.0,0.00013164,2]
[338552469,1726731049395,-500.0,0.00013164,2]
[338552470,1726731049404,-500.0,0.00013164,2]
[338552471,1726731049414,-1007.12,0.00013165,2]
[338552472,1726731049424,-1500.0,0.00013182,2]
[338552473,1726731049434,-500.0,0.00013437,2]
[338552474,1726731049444,-214.99659651,0.00013437,2]
[338552475,1726731049453,-597.2,0.00013437,2]
[338552476,1726731049463,-655.07,0.00013437,2]
[338552477,1726731049472,-500.0,0.00013437,2]
[338552478,1726731049483,-500.0,0.00013437,2]
[338552479,1726731049493,-500.0,0.00013437,2]
[338552480,1726731049503,-357.26163941,0.00013437,2]
[338552481,1726731049513,-500.0,0.00013437,2]
[338552482,1726731049525,-622.79,0.00013437,2]
[338552483,1726731049535,-500.0,0.00013437,2]
[338552484,1726731049544,-500.0,0.00013437,2]
[338552485,1726731049554,-508.38,0.00013437,2]
[338552486,1726731049563,-500.0,0.00013437,2]
[338552487,1726731049573,-500.0,0.00013437,2]
[338552488,1726731049582,-500.0,0.00013437,2]
[338552489,1726731049592,-500.0,0.00013437,2]
[338552490,1726731049602,-500.0,0.00013437,2]
[338552491,1726731049612,-500.0,0.00013437,2]
[338552492,1726731049621,-500.0,0.00013437,2]
[338552493,1726731049631,-500.0,0.00013437,2]
[338552494,1726731049640,-627.39,0.00013437,2]
[338552495,1726731049649,-862.68,0.00013437,2]
[338552496,1726731049659,-158.86,0.00013437,2]
[338552497,1726731049669,-500.0,0.00013437,2]
[338552498,1726731049678,-500.0,0.00013437,2]
[338552499,1726731049688,-500.0,0.00013437,2]
[338552500,1726731049697,-500.0,0.00013437,2]
[338552501,1726731049707,-719.01,0.00013437,2]
[338552502,1726731049717,-539.25,0.00013437,2]
[338552503,1726731049727,-500.0,0.00013437,2]
[338552504,1726731049737,-500.0,0.00013437,2]
[338552505,1726731049747,-500.0,0.00013437,2]
[338552506,1726731049757,-500.0,0.00013437,2]
[338552507,1726731049767,-536.25,0.00013437,2]
[338552508,1726731049777,-530.54,0.00013437,2]
[338552509,1726731049787,-941.18,0.00013437,2]
[338552510,1726731049797,-500.0,0.00013437,2]
[338552511,1726731049806,-570.15,0.00013437,2]
[338552512,1726731049816,-500.0,0.00013437,2]
[338552513,1726731049826,-550.38,0.00013437,2]
[338552514,1726731049835,-502.08,0.00013437,2]
[338552515,1726731049844,-500.0,0.00013437,2]
[338552516,1726731049854,-743.94,0.00013437,2]
[338552517,1726731049863,-500.0,0.00013437,2]
[338552518,1726731049873,-754.07,0.00013437,2]
[338552519,1726731049883,-500.0,0.00013437,2]
[338552520,1726731049893,-500.0,0.00013437,2]
[338552521,1726731049903,-500.0,0.00013437,2]
[338552522,1726731049913,-500.0,0.00013437,2]
[338552523,1726731049923,-500.0,0.00013437,2]
[338552524,1726731049932,-500.0,0.00013437,2]
[338552525,1726731049941,-500.0,0.00013437,2]
[338552526,1726731049951,-500.0,0.00013437,2]
[338552527,1726731049960,-500.0,0.00013437,2]
[338552528,1726731049970,-500.0,0.00013437,2]
[338552529,1726731049980,-500.0,0.00013437,2]
[338552530,1726731049989,-870.39,0.00013437,2]
[338552531,1726731049998,-500.0,0.00013437,2]
[338552532,1726731050013,-500.0,0.00013437,2]
[338552533,1726731050023,-500.0,0.00013437,2]
[338552534,1726731050032,-500.0,0.00013437,2]
[338552535,1726731050042,-500.0,0.00013437,2]
[338552536,1726731050051,-500.0,0.00013437,2]
[338552537,1726731050060,-500.0,0.00013437,2]
[338552538,1726731050069,-552.03,0.00013437,2]
[338552539,1726731050078,-579.99,0.00013437,2]
[338552540,1726731050087,-658.85,0.00013437,2]
[338552541,1726731050097,-207.3625453,0.00013437,2]
[338552542,1726731050106,-500.0,0.00013437,2]
[338552543,1726731050116,-510.64,0.00013437,2]
[338552544,1726731050125,-500.0,0.00013437,2]
[338552545,1726731050138,-576.81,0.00013437,2]
[338552546,1726731050148,-500.0,0.00013437,2]
[338552547,1726731050158,-500.0,0.00013437,2]
[338552548,1726731050168,-500.0,0.00013437,2]
[338552549,1726731050177,-500.0,0.00013437,2]
[338552550,1726731050187,-500.0,0.00013437,2]
[338552551,1726731050197,-500.0,0.00013437,2]
[338552552,1726731050332,-500.0,0.00013437,2]
[338552553,1726731050342,-500.0,0.00013437,2]
[338552554,1726731050353,-500.0,0.00013437,2]
[338552555,1726731050363,-500.0,0.00013437,2]
[338552556,1726731050372,-416.95161875,0.00013437,2]
[338552557,1726731050383,-500.0,0.00013437,2]
[338552558,1726731050392,-500.0,0.00013437,2]
[338552559,1726731050402,-500.0,0.00013437,2]
[338552560,1726731050412,-1420.68,0.00013437,2]
[338552561,1726731050421,-1178.73,0.00013437,2]
[338552562,1726731050430,-500.0,0.00013437,2]
[338552563,1726731050440,-500.0,0.00013437,2]
[338552564,1726731050450,-500.0,0.00013437,2]
[338552565,1726731050459,-500.0,0.00013437,2]
[338552566,1726731050469,-500.0,0.00013437,2]
[338552567,1726731050478,-500.0,0.00013437,2]
[338552568,1726731050487,-1035.0,0.00013437,2]
[338552569,1726731050497,-500.0,0.00013437,2]
[338552570,1726731050506,-500.0,0.00013437,2]
[338552571,1726731050515,-500.0,0.00013437,2]
[338552572,1726731050526,-500.0,0.00013437,2]
[338552573,1726731050536,-500.0,0.00013437,2]
[338552574,1726731050545,-771.96,0.00013437,2]
[338552575,1726731050555,-1163.53,0.00013437,2]
[338552576,1726731050564,-500.0,0.00013437,2]
[338552577,1726731050573,-500.0,0.00013437,2]
[338552578,1726731050582,-500.0,0.00013437,2]
[338552579,1726731050592,-1682.55,0.00013437,2]
[338552580,1726731050601,-500.0,0.00013437,2]
[338552581,1726731050611,-668.24,0.00013437,2]
[338552582,1726731050621,-639.16232203,0.00013437,2]
[338552583,1726731050630,-500.0,0.00013437,2]
[338552584,1726731050640,-767.06,0.00013437,2]
[338552585,1726731050650,-500.0,0.00013437,2]
[338552586,1726731050659,-669.31,0.00013437,2]
[338552587,1726731050669,-500.0,0.00013437,2]
[338552588,1726731050679,-528.99,0.00013437,2]
[338552589,1726731050688,-500.0,0.00013437,2]
[338552590,1726731050698,-500.0,0.00013437,2]
[338552591,1726731050707,-500.0,0.00013437,2]
[338552592,1726731050717,-500.0,0.00013437,2]
[338552593,1726731050726,-861.37,0.00013437,2]
[338552594,1726731050735,-614.08,0.00013437,2]
[338552595,1726731050745,-879.79,0.00013437,2]
[338552596,1726731050754,-521.65,0.00013437,2]
[338552597,1726731050764,-980.6,0.00013437,2]
[338552598,1726731050775,-500.0,0.00013437,2]
[338552599,1726731050784,-500.0,0.00013437,2]
[338552600,1726731050794,-1024.88,0.00013437,2]
[338552601,1726731050804,-500.0,0.00013437,2]
[338552602,1726731050813,-500.0,0.00013437,2]
[338552603,1726731050823,-500.0,0.00013437,2]
[338552604,1726731050832,-500.0,0.00013437,2]
[338552605,1726731050841,-698.65,0.00013437,2]
[338552606,1726731050851,-500.0,0.00013437,2]
[338552607,1726731050860,-500.0,0.00013437,2]
[338552608,1726731050870,-764.87,0.00013437,2]
[338552609,1726731050880,-500.0,0.00013437,2]
[338552610,1726731050890,-500.0,0.00013437,2]
[338552611,1726731050899,-1007.12,0.00013437,2]
[338552612,1726731050909,-500.0,0.00013437,2]
[338552613,1726731050919,-679.13,0.00013437,2]
[338552614,1726731050928,-500.0,0.00013437,2]
[338552615,1726731050938,-569.83,0.00013437,2]
[338552616,1726731050947,-500.0,0.00013437,2]
[338552617,1726731050957,-765.52,0.00013437,2]
[338552618,1726731050966,-630.15331362,0.00013437,2]
[338552619,1726731050976,-500.0,0.00013437,2]
[338552620,1726731050986,-500.0,0.00013437,2]
[338552621,1726731050995,-500.0,0.00013437,2]
[338552622,1726731051008,-870.34,0.00013437,2]
[338552623,1726731051018,-500.0,0.00013437,2]
[338552624,1726731051028,-516.01,0.00013437,2]
[338552625,1726731051038,-500.0,0.00013437,2]
[338552626,1726731051049,-983.22,0.00013437,2]
[338552627,1726731051058,-920.87,0.00013437,2]
[338552628,1726731051067,-500.0,0.00013437,2]
[338552629,1726731051077,-500.0,0.00013437,2]
[338552630,1726731051087,-537.11,0.00013437,2]
[338552631,1726731051097,-582.85,0.00013437,2]
[338552632,1726731051106,-500.0,0.00013437,2]
[338552633,1726731051116,-1935.69,0.00013437,2]
[338552634,1726731051125,-599.23,0.00013437,2]
[338552635,1726731051135,-616.28,0.00013437,2]
[338552636,1726731051144,-500.0,0.00013437,2]
[338552637,1726731051154,-980.34,0.00013437,2]
[338552638,1726731051163,-579.61,0.00013437,2]
[338552639,1726731051173,-500.0,0.00013437,2]
[338552640,1726731051183,-269.57209837,0.00013437,2]
[338552641,1726731051192,-1026.04,0.00013437,2]
[338552642,1726731051201,-703.89,0.00013437,2]
[338552643,1726731051211,-363.19721529,0.00013437,2]